bitfinex/quotes_SOLUSD_20241103
["timestamp","ask_amount","ask_price","bid_price","bid_amount"]
[1730644023725,96.91277,160.35,160.34,53.26111264]
[1730644024041,97.01277,160.35,160.34,49.95301264]
[1730644024242,97.01277,160.35,160.34,45.26601264]
[1730644024448,139.529654,160.35,160.34,34.78271264]
[1730644024747,139.529654,160.35,160.34,13.82081264]
[1730644025054,139.529654,160.35,160.34,1.264e-05]
[1730644025353,139.529654,160.35,160.3,0.8]
[1730644025354,133.293354,160.31,160.3,4.589e-05]
[1730644026129,70.3,160.25,160.2,10.0]
[1730644026341,76.6418,160.21,160.2,9.5]
[1730644026527,125.330374,160.21,160.2,9.5]
[1730644026734,125.230374,160.21,160.2,9.5]
[1730644027146,101.55349,160.21,160.2,9.5]
[1730644027452,144.195864,160.21,160.2,9.5]
[1730644027627,120.31898,160.21,160.2,9.5]
[1730644027831,76.4418,160.21,160.2,9.5]
[1730644028428,95.2818,160.21,160.2,9.5]
[1730644028644,76.4418,160.21,160.2,9.5]
[1730644029035,76.66729,160.21,160.2,9.5]
[1730644029238,95.40729,160.21,160.2,9.5]
[1730644029429,76.56729,160.21,160.2,9.5]
[1730644029629,76.4418,160.21,160.2,9.5]
[1730644030454,76.56729,160.21,160.2,9.5]
[1730644030756,70.2,160.21,160.2,9.5]
[1730644032340,0.2,160.22,160.2,31.0041]
[1730644032541,0.1,160.21,160.2,24.762]
[1730644032959,0.2,160.21,160.2,24.762]
[1730644033833,0.1,160.21,160.2,15.7421]
[1730644034041,0.1,160.22,160.2,15.7421]
[1730644034258,0.2,160.22,160.2,9.5]
[1730644034853,0.1,160.24,160.2,31.3475]
[1730644035049,0.2,160.25,160.2,31.3475]
[1730644035960,0.1,160.28,160.22,15.914]
[1730644036135,0.2,160.28,160.22,15.914]
[1730644036334,0.1,160.28,160.22,15.914]
[1730644036539,0.1,160.27,160.22,15.914]
[1730644036765,0.1,160.29,160.23,45.745874]
[1730644036937,0.1,160.31,160.24,0.25098]
[1730644037145,0.1,160.31,160.25,23.902374]
[1730644037760,0.1,160.31,160.26,20.0]
[1730644037961,0.1,160.33,160.26,20.0]
[1730644038139,0.1,160.32,160.26,20.0]
[1730644038333,0.1,160.31,160.23,84.2537]
[1730644038556,0.1,160.29,160.23,53.0486]
[1730644038759,0.2,160.29,160.23,53.0486]
[1730644039140,0.1,160.28,160.23,53.0486]
[1730644039774,0.2,160.31,160.24,20.12549]
[1730644040062,0.1,160.3,160.24,20.12549]
[1730644040257,0.1,160.28,160.23,21.8435]
[1730644040436,0.1,160.25,160.23,21.8435]
[1730644040638,0.2,160.27,160.23,21.8435]
[1730644041175,0.1,160.26,160.23,21.8435]
[1730644042061,0.1,160.27,160.23,21.8435]
[1730644042251,0.1,160.26,160.23,21.8435]
[1730644042663,0.1,160.27,160.23,21.8435]
[1730644042842,0.1,160.28,160.23,21.8435]
[1730644043362,0.1,160.27,160.23,21.8435]
[1730644043860,70.0,160.29,160.23,21.8435]
[1730644043861,0.1,160.28,160.24,20.0]
[1730644044946,0.1,160.28,160.25,21.8408]
[1730644045153,0.1,160.27,160.25,21.8408]
[1730644046360,0.1,160.28,160.25,15.6006]
[1730644047160,0.1,160.27,160.25,15.6006]
[1730644047342,0.1,160.28,160.25,15.6006]
[1730644047845,0.1,160.27,160.25,15.6006]
[1730644048047,0.1,160.28,160.25,15.6006]
[1730644048261,0.1,160.3,160.26,20.0]
[1730644048463,0.1,160.29,160.26,20.0]
[1730644049443,0.1,160.31,160.26,20.0]
[1730644049645,0.1,160.33,160.26,20.0]
[1730644049859,0.1,160.32,160.26,20.0]
[1730644050466,0.1,160.32,160.28,20.0]
[1730644051545,0.1,160.28,160.27,21.838]
[1730644051766,70.0,160.31,160.27,21.838]
[1730644051767,0.1,160.3,160.27,21.838]
[1730644051976,0.1,160.31,160.27,21.838]
[1730644052649,0.1,160.32,160.24,24.153354]
[1730644052850,0.1,160.32,160.25,20.0]
[1730644053058,0.1,160.31,160.25,20.0]
[1730644053758,70.1,160.29,160.23,53.0486]
[1730644053965,0.1,160.28,160.23,53.0486]
[1730644054271,70.0,160.29,160.23,53.0486]
[1730644054450,6.2362,160.36,160.23,53.0486]
[1730644054451,70.1,160.31,160.23,53.0486]
[1730644054660,70.0,160.31,160.23,53.0486]
[1730644054979,70.1,160.28,160.23,15.6025]
[1730644055488,70.0,160.28,160.23,21.8435]
[1730644056047,70.1,160.3,160.23,21.8435]
[1730644056247,70.0,160.3,160.24,20.0]
[1730644056769,70.0,160.3,160.22,15.378]
[1730644056770,70.1,160.28,160.22,15.378]
[1730644056985,0.1,160.21,160.2,9.5]
[1730644058275,0.1,160.21,160.2,15.7421]
[1730644058478,70.1,160.24,160.2,9.5]
[1730644058664,0.1,160.24,160.2,9.5]
[1730644058977,0.1,160.25,160.2,25.1054]
[1730644059378,70.1,160.26,160.2,25.1054]
[1730644059877,0.1,160.27,160.2,31.3849]
[1730644060079,0.1,160.26,160.21,2.85564595]
[1730644060283,0.1,160.26,160.2,31.3849]
[1730644060453,0.1,160.26,160.21,2.85586075]
[1730644060650,70.0,160.27,160.2,31.3849]
[1730644060857,70.1,160.27,160.22,21.8449]
[1730644061058,70.0,160.27,160.22,21.8449]
[1730644061866,0.1,160.28,160.22,21.8449]
[1730644062068,0.1,160.29,160.23,22.85537226]
[1730644062388,70.1,160.33,160.24,2.85537226]
[1730644062558,70.0,160.33,160.26,20.0]
[1730644062761,70.1,160.35,160.27,21.96349]
[1730644063076,70.1,160.35,160.28,22.85556465]
[1730644063277,70.1,160.35,160.28,20.0]
[1730644063278,70.0,160.35,160.28,20.0]
[1730644064058,0.1,160.34,160.28,20.0]
[1730644064257,0.1,160.35,160.28,20.0]
[1730644064572,70.0,160.34,160.27,53.0353]
[1730644064772,70.1,160.34,160.27,31.1973]
[1730644064974,0.1,160.33,160.29,15.5967]
[1730644065191,0.1,160.33,160.28,6.239]
[1730644065192,70.0,160.3,160.25,15.5998]
[1730644065362,0.1,160.31,160.25,15.5998]
[1730644065686,0.1,160.3,160.25,15.5998]
[1730644066062,70.1,160.32,160.25,15.5998]
[1730644066261,70.0,160.32,160.25,15.5998]
[1730644066553,70.0,160.3,160.25,15.5998]
[1730644066988,70.1,160.35,160.27,23.776884]
[1730644067275,0.1,160.36,160.29,22.7073]
[1730644067502,0.1,160.37,160.3,23.902374]
[1730644067664,0.1,160.4,160.32,23.902374]
[1730644067865,0.1,160.4,160.32,0.12549]
[1730644068265,70.1,160.43,160.34,0.12549]
[1730644068467,0.3992651,160.44,160.36,0.12549]
[1730644068688,0.2992651,160.44,160.37,20.0]
[1730644068886,0.2992651,160.44,160.38,21.823]
[1730644068887,0.1,160.43,160.38,21.823]
[1730644069098,70.1,160.42,160.38,21.823]
[1730644069768,0.2992651,160.44,160.38,21.823]
[1730644070163,0.2992651,160.44,160.39,16.2516]
[1730644070368,70.0,160.43,160.39,16.2516]
[1730644070574,0.1,160.41,160.38,21.823]
[1730644070788,0.1,160.42,160.38,21.823]
[1730644071084,0.1,160.41,160.34,16.2516]
[1730644071291,70.0,160.43,160.34,47.4345]
[1730644071475,0.1,160.41,160.34,47.4345]
[1730644071672,70.1,160.43,160.34,47.4345]
[1730644071892,0.1,160.4,160.35,20.0]
[1730644072192,70.1,160.41,160.34,47.4345]
[1730644072368,6.2333,160.43,160.34,16.2516]
[1730644072369,70.1,160.39,160.34,16.2516]
[1730644072792,0.1,160.38,160.34,16.2516]
[1730644072980,0.1,160.38,160.35,6.2363]
[1730644073181,70.0,160.39,160.35,21.8271]
[1730644073487,0.1,160.35,160.31,15.5938]
[1730644073887,0.1,160.34,160.31,15.5938]
[1730644074190,70.1,160.36,160.31,15.5938]
[1730644074566,0.1,160.35,160.31,15.5938]
[1730644075007,70.1,160.36,160.31,15.5938]
[1730644075691,70.0,160.36,160.31,15.5938]
[1730644075884,0.1,160.37,160.31,15.5938]
[1730644076793,70.0,160.38,160.31,15.5938]
[1730644077183,70.0,160.38,160.32,20.0]
[1730644077685,70.1,160.4,160.32,20.0]
[1730644077889,70.0,160.4,160.34,20.0]
[1730644078289,70.1,160.4,160.34,20.0]
[1730644078500,0.1,160.41,160.34,20.0]
[1730644078678,70.2992651,160.44,160.35,0.12549]
[1730644078679,70.3992651,160.44,160.35,0.12549]
[1730644078881,0.2992651,160.44,160.37,43.902374]
[1730644079377,0.2992651,160.44,160.38,6.4557]
[1730644079577,0.2992651,160.44,160.39,20.0]
[1730644079789,0.2992651,160.44,160.4,21.8204]
[1730644079991,0.2992651,160.44,160.41,20.0]
[1730644080307,0.2992651,160.44,160.42,0.12549]
[1730644080795,0.2992651,160.44,160.41,20.0]
[1730644081174,0.2992651,160.52,160.44,24.153354]
[1730644081376,0.2992651,160.52,160.4,52.9924]
[1730644081377,0.2992651,160.52,160.48,0.12549]
[1730644081779,0.2992651,160.52,160.48,21.8095]
[1730644082191,70.0,160.51,160.48,21.8095]
[1730644082396,0.1,160.51,160.48,15.5782]
[1730644082600,0.1,160.5,160.48,15.5782]
[1730644082782,0.1,160.49,160.44,15.5817]
[1730644082987,70.1,160.5,160.44,15.5817]
[1730644083801,0.2992651,160.52,160.44,15.5817]
[1730644083802,70.1,160.48,160.44,15.5817]
[1730644083977,70.0,160.48,160.44,15.5817]
[1730644085305,0.1,160.49,160.44,15.5817]
[1730644085493,70.1,160.5,160.44,15.5817]
[1730644085686,0.1,160.51,160.45,20.0]
[1730644085997,70.0,160.5,160.46,21.8122]
[1730644086215,70.1,160.5,160.46,21.8122]
[1730644086396,0.1,160.51,160.46,21.8122]
[1730644086609,0.2992651,160.52,160.47,20.0]
[1730644086787,0.2992651,160.52,160.49,20.0]
[1730644087609,0.2992651,160.52,160.5,0.12549]
[1730644087815,0.2992651,160.52,160.49,20.0]
[1730644087983,0.2992651,160.52,160.18,58.93169297]
[1730644087984,0.1,160.5,160.42,22.7073]
[1730644088181,0.1,160.45,160.41,6.2337]
[1730644088386,70.1,160.44,160.4,15.5856]
[1730644088581,70.1,160.44,160.4,21.82]
[1730644088783,70.0,160.44,160.4,21.82]
[1730644089001,70.1,160.42,160.38,6.235]
[1730644089200,70.0,160.42,160.38,6.235]
[1730644089405,0.1,160.45,160.38,21.8229]
[1730644089702,70.1,160.44,160.38,21.8229]
[1730644089880,70.0,160.44,160.38,21.8229]
[1730644090204,70.0,160.42,160.37,16.2516]
[1730644090506,70.0,160.42,160.38,6.2351]
[1730644091111,70.1,160.43,160.38,21.823]
[1730644091309,0.1,160.42,160.38,21.823]
[1730644091805,0.1,160.45,160.39,20.0]
[1730644092104,70.1,160.45,160.4,21.8204]
[1730644092411,0.1,160.45,160.4,21.8204]
[1730644092611,0.1,160.46,160.4,21.8204]
[1730644092780,0.1,160.48,160.41,20.0]
[1730644092984,70.1,160.51,160.42,0.37647]
[1730644093185,70.1,160.51,160.44,0.25098]
[1730644093186,0.1,160.51,160.44,0.25098]
[1730644093503,0.2992651,160.52,160.44,0.25098]
[1730644093883,0.2992651,160.52,160.46,0.12549]
[1730644094122,0.2992651,160.52,160.48,20.0]
[1730644094912,0.3992651,160.52,160.48,20.0]
[1730644095093,0.3992651,160.52,160.47,16.2516]
[1730644095715,0.2992651,160.52,160.47,16.2516]
[1730644096009,0.2992651,160.52,160.48,21.8095]
[1730644096389,0.1,160.51,160.48,21.8095]
[1730644097095,0.3992651,160.52,160.48,15.5782]
[1730644097299,0.1,160.51,160.48,15.5782]
[1730644097606,0.2992651,160.52,160.48,21.8095]
[1730644098114,0.3992651,160.52,160.48,21.8095]
[1730644098305,0.2992651,160.52,160.48,21.8095]
[1730644098815,0.2992651,160.52,160.48,52.966]
[1730644099022,0.2992651,160.52,160.48,21.8095]
[1730644099190,0.1,160.51,160.48,21.8095]
[1730644099693,0.2992651,160.52,160.48,21.8095]
[1730644100008,0.1,160.51,160.48,21.8095]
[1730644100219,0.1,160.5,160.48,21.8095]
[1730644100899,0.2992651,160.52,160.48,21.8095]
[1730644101103,0.2992651,160.52,160.49,20.0]
[1730644101416,0.3992651,160.52,160.48,21.8095]
[1730644101792,0.2992651,160.52,160.48,21.8095]
[1730644102218,0.3992651,160.52,160.48,21.8095]
[1730644102394,0.1,160.5,160.47,16.2516]
[1730644103105,0.1,160.46,160.43,6.2332]
[1730644103513,0.1,160.47,160.43,21.8162]
[1730644103693,0.1,160.46,160.43,21.8162]
[1730644104010,70.1,160.48,160.43,21.8162]
[1730644104202,0.1,160.45,160.43,21.8162]
[1730644104511,0.1,160.43,160.37,21.8244]
[1730644104717,0.1,160.43,160.37,53.0023]
[1730644105202,0.1,160.43,160.38,0.12549]
[1730644105609,0.1,160.43,160.37,53.0023]
[1730644105907,0.1,160.46,160.39,0.25098]
[1730644106123,0.1,160.47,160.4,21.94589]
[1730644106321,0.1,160.48,160.41,0.12549]
[1730644106514,0.1,160.47,160.41,20.25098]
[1730644107014,0.1,160.45,160.41,20.12549]
[1730644107413,0.1,160.44,160.41,0.12549]
[1730644108014,0.1,160.44,160.38,21.823]
[1730644108201,0.1,160.44,160.39,20.0]
[1730644108604,0.1,160.43,160.39,0.12549]
[1730644108809,0.1,160.43,160.39,20.12549]
[1730644109012,0.1,160.41,160.38,21.823]
[1730644109407,70.1,160.43,160.38,21.823]
[1730644109700,0.1,160.41,160.38,21.823]
[1730644109900,70.1,160.43,160.38,15.5879]
[1730644110199,0.1,160.35,160.32,6.2375]
[1730644110401,0.1,160.34,160.32,21.8313]
[1730644111022,0.1,160.34,160.32,15.5938]
[1730644111318,0.1,160.34,160.32,21.8313]
[1730644112621,0.1,160.32,160.26,16.6024]
[1730644112820,0.1,160.31,160.26,16.6024]
[1730644113033,0.1,160.36,160.26,16.7024]
[1730644113325,0.1,160.34,160.26,16.6024]
[1730644113498,0.1,160.36,160.27,0.12549]
[1730644113697,0.1,160.36,160.28,0.1]
[1730644114101,0.1,160.36,160.31,20.0]
[1730644114319,0.1,160.34,160.29,21.8353]
[1730644114503,0.1,160.34,160.3,43.776884]
[1730644115104,0.1,160.34,160.3,23.776884]
[1730644115706,0.1,160.34,160.31,21.8326]
[1730644116315,0.1,160.33,160.31,21.8326]
[1730644117118,0.1,160.32,160.31,15.5947]
[1730644117424,15.6861,160.4,160.29,6.2383]
[1730644117425,0.1,160.31,160.29,6.2383]
[1730644118011,0.1,160.31,160.27,21.8373]
[1730644118219,0.1,160.33,160.27,53.0346]
[1730644118417,0.1,160.34,160.27,53.0346]
[1730644118807,0.1,160.32,160.28,20.0]
[1730644119325,0.1,160.32,160.27,53.0346]
[1730644120235,0.1,160.34,160.27,53.0346]
[1730644120406,0.1,160.35,160.28,20.37647]
[1730644120617,0.1,160.32,160.28,20.37647]
[1730644120812,0.1,160.31,160.27,21.8373]
[1730644121020,0.1,160.31,160.27,53.0346]
[1730644122406,0.1,160.33,160.27,53.0346]
[1730644122612,0.1,160.31,160.27,53.0346]
[1730644123829,0.1,160.3,160.27,21.8373]
[1730644124126,0.1,160.29,160.27,21.8373]
[1730644124327,0.1,160.3,160.27,21.8373]
[1730644124708,70.1,160.25,160.24,0.2992651]
[1730644124906,76.3402,160.25,160.24,0.2992651]
[1730644125713,70.1,160.25,160.24,0.2992651]
[1730644126312,0.1,160.26,160.24,15.9007651]
[1730644126530,70.1,160.28,160.24,22.1409651]
[1730644126726,0.1,160.25,160.24,22.1409651]
[1730644127611,0.1,160.27,160.24,22.1409651]
[1730644127829,70.1,160.28,160.24,22.1409651]
[1730644128432,0.1,160.25,160.24,22.1409651]
[1730644128736,0.1,160.25,160.24,15.9007651]
[1730644128916,0.1,160.25,160.24,22.1413651]
[1730644129312,0.1,160.26,160.24,22.1413651]
[1730644129723,0.1,160.27,160.24,22.1413651]
[1730644130626,0.1,160.25,160.24,0.2992651]
[1730644134318,70.1,160.26,160.24,0.2992651]
[1730644134531,0.1,160.25,160.24,0.2992651]
[1730644134836,0.1,160.26,160.24,6.5398651]
[1730644135027,70.1,160.28,160.24,6.5398651]
[1730644135234,0.1,160.25,160.24,22.1413651]
[1730644136035,70.1,160.28,160.24,22.1413651]
[1730644136326,31.86252773,160.51,160.24,22.1413651]
[1730644136327,0.1,160.31,160.25,26.30609]
[1730644136536,70.0,160.36,160.28,15.2079]
[1730644136537,0.1,160.32,160.28,15.2079]
[1730644136741,0.1,160.31,160.28,15.2079]
[1730644136943,0.1,160.3,160.28,15.2079]
[1730644137239,0.1,160.29,160.28,15.2079]
[1730644137813,0.1,160.31,160.28,15.2079]
[1730644138012,0.1,160.31,160.29,6.2386]
[1730644138225,0.1,160.3,160.29,6.2386]
[1730644138534,0.1,160.3,160.29,15.5967]
[1730644139732,0.1,160.29,160.26,21.8394]
[1730644140745,0.1,160.27,160.26,15.5996]
[1730644141420,0.1,160.25,160.24,0.2992651]
[1730644142736,6.3402,160.25,160.24,0.2992651]
[1730644143613,26.3402,160.25,160.24,0.2992651]
[1730644143816,45.1802,160.25,160.24,0.2992651]
[1730644144021,45.0802,160.25,160.24,0.2992651]
[1730644144216,26.3402,160.25,160.24,0.2992651]
[1730644144618,45.0802,160.25,160.24,0.2992651]
[1730644145136,26.3402,160.25,160.24,0.2992651]
[1730644145326,26.4402,160.25,160.24,0.2992651]
[1730644145530,26.5402,160.25,160.24,0.2992651]
[1730644145718,26.4402,160.25,160.24,0.2992651]
[1730644146043,26.3402,160.25,160.24,0.2992651]
[1730644148719,6.3402,160.25,160.24,0.2992651]
[1730644148936,0.1,160.25,160.24,0.2992651]
[1730644149137,6.3402,160.25,160.24,0.2992651]
[1730644150526,0.1,160.25,160.24,0.2992651]
[1730644152320,6.3402,160.25,160.24,0.2992651]
[1730644152520,0.1,160.25,160.24,0.2992651]
[1730644156651,6.3402,160.25,160.24,0.2992651]
[1730644157240,0.1,160.25,160.24,0.2992651]
[1730644158739,6.3402,160.25,160.24,0.2992651]
[1730644158937,0.1,160.25,160.24,0.2992651]
[1730644159654,0.1,160.26,160.24,0.2992651]
[1730644159957,0.1,160.25,160.24,0.2992651]
[1730644160528,0.1,160.28,160.24,0.2992651]
[1730644160748,0.1,160.29,160.24,15.9007651]
[1730644160955,0.1,160.28,160.24,15.9007651]
[1730644161150,0.1,160.3,160.26,15.8402]
[1730644161834,76.2367,160.34,160.26,15.8402]
[1730644161835,0.1,160.35,160.28,24.153354]
[1730644162040,15.5837,160.43,160.28,24.253354]
[1730644162041,0.1,160.37,160.28,24.253354]
[1730644162349,76.2346,160.4,160.28,24.253354]
[1730644162350,0.1,160.36,160.28,24.253354]
[1730644162750,70.0,160.4,160.28,24.253354]
[1730644162751,0.1,160.37,160.32,0.12549]
[1730644163149,0.1,160.36,160.32,0.25098]
[1730644163337,0.1,160.34,160.32,0.25098]
[1730644164252,0.1,160.35,160.32,0.25098]
[1730644164450,0.1,160.36,160.32,0.25098]
[1730644164654,0.1,160.35,160.32,6.48818]
[1730644164961,0.1,160.37,160.32,6.48818]
[1730644165138,0.1,160.37,160.33,0.25098]
[1730644165563,6.2342,160.41,160.34,0.25098]
[1730644165564,0.1,160.38,160.34,0.25098]
[1730644165755,0.1,160.4,160.35,15.8402]
[1730644166552,0.1,160.4,160.36,6.4933]
[1730644166757,0.1,160.38,160.36,6.4933]
[1730644167361,0.1,160.4,160.36,6.4933]
[1730644167565,0.1,160.38,160.36,6.4933]
[1730644168036,0.1,160.37,160.36,6.4933]
[1730644169257,0.1,160.37,160.35,22.0765]
[1730644169258,0.1,160.36,160.35,15.8402]
[1730644170738,0.1,160.36,160.35,14.3402]
[1730644170961,0.1,160.38,160.35,14.3402]
[1730644171148,0.1,160.36,160.35,14.3402]
[1730644173362,0.1,160.37,160.35,14.3402]
[1730644173548,70.0,160.41,160.36,0.37647]
[1730644173549,0.1,160.41,160.36,0.37647]
[1730644174056,0.1,160.43,160.36,24.253354]
[1730644174260,0.1,160.44,160.39,0.1]
[1730644174442,0.1,160.47,160.41,0.37647]
[1730644174646,0.1,160.46,160.41,6.76137]
[1730644175261,0.1,160.46,160.41,12.99517]
[1730644175463,0.1,160.44,160.41,12.99517]
[1730644175760,0.1,160.46,160.41,12.99517]
[1730644176066,0.1,160.49,160.44,16.1729]
[1730644176288,0.1,160.45,160.44,16.54937]
[1730644176457,0.1,160.45,160.44,16.1729]
[1730644176673,0.1,160.44,160.41,6.63588]
[1730644176960,0.1,160.43,160.41,6.63588]
[1730644178168,0.1,160.45,160.41,6.3849]
[1730644178362,0.1,160.42,160.41,6.3849]
[1730644179071,0.1,160.42,160.41,0.12549]
[1730644180476,0.1,160.42,160.4,16.1729]
[1730644180653,0.1,160.41,160.4,16.29839]
[1730644180850,0.1,160.41,160.4,16.42388]
[1730644181152,0.1,160.41,160.36,0.1]
[1730644181360,0.1,160.41,160.24,0.2992651]
[1730644181361,0.1,160.36,160.32,22.4103]
[1730644181947,0.1,160.37,160.32,16.1729]
[1730644182171,0.1,160.38,160.32,22.4102]
[1730644182350,0.1,160.4,160.34,0.1]
[1730644182542,0.1,160.4,160.36,0.12549]
[1730644182747,6.2332,160.44,160.36,0.12549]
[1730644182748,0.1,160.41,160.36,0.12549]
[1730644183254,0.1,160.41,160.36,24.153354]
[1730644183465,0.1,160.39,160.36,24.153354]
[1730644183659,0.1,160.38,160.36,24.153354]
[1730644184152,0.1,160.38,160.36,0.37647]
[1730644184352,0.1,160.37,160.34,24.027864]
[1730644184559,70.0,160.42,160.35,0.12549]
[1730644184560,0.1,160.39,160.35,0.12549]
[1730644184751,0.1,160.39,160.34,0.1]
[1730644184952,0.1,160.38,160.34,0.12549]
[1730644185153,0.1,160.37,160.34,0.12549]
[1730644185763,0.1,160.4,160.34,0.12549]
[1730644185960,0.1,160.37,160.34,0.37647]
[1730644186476,0.1,160.36,160.34,24.153354]
[1730644186659,0.1,160.36,160.34,45.981854]
[1730644187751,0.1,160.36,160.34,0.37647]
[1730644188749,0.1,160.35,160.34,0.12549]
[1730644188956,0.1,160.34,160.33,0.25098]
[1730644189346,0.1,160.34,160.33,0.37647]
[1730644189553,0.1,160.4,160.34,0.12549]
[1730644189953,0.1,160.39,160.34,0.12549]
[1730644190165,0.1,160.37,160.34,0.12549]
[1730644190674,0.1,160.4,160.35,15.5908]
[1730644190870,0.1,160.34,160.32,16.1729]
[1730644191059,6.2347,160.4,160.28,0.1]
[1730644191060,0.1,160.32,160.28,15.0548]
[1730644191367,0.1,160.29,160.28,15.0548]
[1730644191962,0.1,160.29,160.24,6.5398651]
[1730644192166,0.1,160.31,160.24,6.5398651]
[1730644192378,0.1,160.3,160.24,6.5398651]
[1730644192556,0.1,160.28,160.24,20.2992651]
[1730644192759,0.1,160.27,160.24,22.1411651]
[1730644192955,0.1,160.35,160.24,22.1411651]
[1730644192956,0.1,160.31,160.24,22.1411651]
[1730644193370,0.1,160.29,160.24,22.1411651]
[1730644193575,0.1,160.31,160.24,22.1411651]
[1730644193785,0.1,160.29,160.24,6.5397651]
[1730644193986,0.1,160.29,160.25,20.12549]
[1730644194158,0.1,160.34,160.26,0.12549]
[1730644194360,0.1,160.35,160.26,0.12549]
[1730644194558,0.1,160.35,160.27,0.12549]
[1730644194877,0.1,160.4,160.33,0.37647]
[1730644195083,0.1,160.41,160.35,0.37647]
[1730644195391,0.1,160.35,160.29,20.0]
[1730644195563,0.1,160.37,160.3,0.12549]
[1730644195763,0.1,160.38,160.3,0.22549]
[1730644196065,0.1,160.38,160.3,0.12549]
[1730644196460,0.1,160.39,160.32,0.25098]
[1730644196676,0.1,160.36,160.35,0.25098]
[1730644196875,0.1,160.36,160.35,24.153354]
[1730644197058,0.1,160.39,160.35,24.153354]
[1730644197260,0.1,160.37,160.35,24.153354]
[1730644197490,0.1,160.37,160.35,0.37647]
[1730644197679,0.1,160.36,160.34,0.12549]
[1730644197876,0.1,160.36,160.34,0.25098]
[1730644198286,0.1,160.37,160.34,0.25098]
[1730644198586,0.1,160.35,160.33,24.027864]
[1730644198771,0.1,160.34,160.33,24.027864]
[1730644199278,0.1,160.36,160.33,30.390454]
[1730644199485,0.1,160.35,160.34,0.12549]
[1730644199876,0.1,160.28,160.25,21.8408]
[1730644200184,0.1,160.29,160.25,21.8408]
[1730644200367,0.1,160.3,160.25,21.8408]
[1730644200784,0.1,160.27,160.25,15.6006]
[1730644201175,0.1,160.27,160.24,6.5395651]
[1730644201176,0.1,160.27,160.26,0.12549]
[1730644201487,0.1,160.31,160.26,0.12549]
[1730644201691,0.1,160.29,160.26,0.12549]
[1730644201875,0.1,160.31,160.25,0.12549]
[1730644202082,0.1,160.28,160.25,23.902374]
[1730644202774,0.1,160.28,160.24,0.2992651]
[1730644202973,0.1,160.25,160.24,0.2992651]
[1730644204188,0.1,160.26,160.24,0.2992651]
[1730644204485,0.1,160.28,160.25,0.12549]
[1730644204685,0.1,160.26,160.24,0.2992651]
[1730644204889,0.1,160.25,160.24,0.2992651]
[1730644206571,76.3402,160.25,160.24,0.2992651]
[1730644207473,96.5402,160.25,160.24,0.2992651]
[1730644207669,96.3402,160.25,160.24,0.2992651]
[1730644208070,90.1,160.25,160.24,0.2992651]
[1730644208280,0.1,160.25,160.24,0.2992651]
[1730644208672,6.3402,160.25,160.24,0.2992651]